bitfinex/quotes_SOLUSD_20240703
["timestamp","ask_amount","ask_price","bid_price","bid_amount"]
[1720035565408,7.1104,140.64,140.59,25.2346]
[1720035565909,7.1104,140.64,140.59,18.1221]
[1720035566117,7.1109,140.63,140.59,18.1221]
[1720035567197,7.1114,140.62,140.59,0.34]
[1720035568199,7.1114,140.62,140.58,0.34]
[1720035568400,17.7749,140.65,140.58,0.34]
[1720035568624,36.7364,140.66,140.57,16.406]
[1720035568625,7.112,140.61,140.57,16.406]
[1720035568800,63.9864,140.66,140.58,0.34]
[1720035569126,7.1127,140.6,140.58,0.34]
[1720035570345,17.7785,140.62,140.56,6.1576]
[1720035570506,7.1138,140.57,140.54,15.0717]
[1720035570710,7.1144,140.56,140.52,13.3012]
[1720035570908,27.25,140.6,140.52,6.1849]
[1720035571138,7.113,140.59,140.54,7.115]
[1720035571623,7.112,140.61,140.55,17.7868]
[1720035571925,7.112,140.61,140.53,35.5794]
[1720035571926,7.111,140.63,140.57,17.7842]
[1720035572130,7.1105,140.64,140.59,7.1127]
[1720035572333,33.1305,140.66,140.58,16.3934]
[1720035572334,7.1108,140.63,140.6,0.34]
[1720035572709,7.1108,140.63,140.6,0.17]
[1720035572904,7.1108,140.63,140.59,0.34]
[1720035573310,7.1108,140.63,140.59,7.4528]
[1720035573710,17.7741,140.66,140.59,7.4528]
[1720035573711,7.1104,140.64,140.59,7.4528]
[1720035574226,7.1104,140.64,140.59,25.2349]
[1720035574924,17.7741,140.66,140.59,25.2349]
[1720035574925,7.1108,140.63,140.59,25.2349]
[1720035575109,7.1108,140.63,140.59,18.1221]
[1720035575510,7.1117,140.62,140.58,22.6415]
[1720035575926,7.1109,140.63,140.58,29.7548]
[1720035576719,7.1109,140.63,140.59,7.2828]
[1720035576911,7.1109,140.63,140.6,0.17]
[1720035577110,7.1109,140.63,140.59,0.34]
[1720035577411,17.7741,140.66,140.59,7.4528]
[1720035577745,7.1107,140.64,140.59,7.4528]
[1720035578036,7.1109,140.63,140.59,7.4528]
[1720035578245,17.7741,140.66,140.59,7.4528]
[1720035578734,7.1109,140.63,140.59,0.34]
[1720035581116,17.7741,140.66,140.59,0.34]
[1720035581317,7.1121,140.61,140.58,22.6415]
[1720035582438,48.63,140.65,140.55,21.3075]
[1720035582646,7.1136,140.58,140.55,21.3075]
[1720035583222,7.114,140.57,140.55,21.3075]
[1720035583424,7.1143,140.56,140.55,15.1498]
[1720035583937,17.7812,140.6,140.52,31.0643]
[1720035583938,7.114,140.57,140.52,31.0643]
[1720035584119,7.1141,140.57,140.52,31.0643]
[1720035584817,17.7812,140.6,140.52,31.0643]
[1720035584818,7.1134,140.58,140.53,7.2856]
[1720035585137,7.1138,140.57,140.53,0.17]
[1720035585845,7.1145,140.56,140.53,0.17]
[1720035586147,48.63,140.62,140.52,6.1577]
[1720035586148,17.784,140.58,140.52,6.1577]
[1720035586618,7.115,140.55,140.52,6.1577]
[1720035586820,7.1145,140.56,140.52,13.274]
[1720035587016,27.25,140.59,140.52,6.1577]
[1720035587223,7.1134,140.58,140.54,7.1153]
[1720035587436,7.1134,140.58,140.53,24.9048]
[1720035587723,7.1124,140.6,140.55,24.9015]
[1720035587932,7.1124,140.6,140.56,0.34]
[1720035588519,7.112,140.61,140.56,7.4542]
[1720035588720,7.1123,140.6,140.56,0.34]
[1720035588931,7.1113,140.63,140.58,7.1132]
[1720035589142,7.1103,140.64,140.59,18.122]
[1720035589441,7.1099,140.65,140.6,7.1123]
[1720035589743,7.1099,140.65,140.61,0.17]
[1720035589944,7.1099,140.65,140.61,0.34]
[1720035590147,17.7724,140.67,140.61,0.34]
[1720035590546,17.7724,140.67,140.6,0.34]
[1720035591250,7.1105,140.64,140.6,0.34]
[1720035592548,7.1109,140.63,140.6,0.34]
[1720035592727,7.1109,140.63,140.61,0.17]
[1720035593344,7.1109,140.63,140.59,0.34]
[1720035593828,17.7724,140.67,140.59,0.34]
[1720035594030,45.8463537,140.7,140.6,17.7804]
[1720035594232,45.8463537,140.7,140.61,0.17]
[1720035594427,7.1102,140.65,140.6,7.112]
[1720035594627,7.1102,140.65,140.61,0.34]
[1720035596743,67.2263537,140.7,140.61,0.34]
[1720035596945,7.1104,140.64,140.61,0.34]
[1720035597130,7.1104,140.64,140.59,24.8937]
[1720035597131,7.1104,140.64,140.6,0.34]
[1720035597644,7.1104,140.64,140.6,7.4523]
[1720035597843,7.1104,140.64,140.6,0.34]
[1720035601256,7.11,140.65,140.6,7.4523]
[1720035601455,27.25,140.68,140.61,17.7794]
[1720035601655,27.25,140.68,140.62,0.34]
[1720035601959,27.25,140.68,140.57,15.5726]
[1720035601960,27.25,140.63,140.54,6.0568]
[1720035602136,7.1147,140.56,140.54,6.0568]
[1720035602462,7.1147,140.56,140.52,15.5603]
[1720035602463,27.25,140.6,140.52,15.5603]
[1720035602763,7.1144,140.56,140.51,7.1168]
[1720035603127,7.1145,140.56,140.51,7.1168]
[1720035603331,7.116,140.53,140.48,7.1182]
[1720035603851,7.115,140.55,140.5,7.1174]
[1720035604763,27.25,140.57,140.51,18.1314]
[1720035604970,7.1141,140.57,140.52,7.116]
[1720035605261,7.1145,140.56,140.51,25.2482]
[1720035605633,7.1138,140.58,140.52,7.1164]
[1720035605854,27.25,140.6,140.54,7.1153]
[1720035606043,7.1133,140.59,140.55,0.34]
[1720035607452,7.1134,140.58,140.55,0.34]
[1720035607637,7.1134,140.58,140.54,0.34]
[1720035608243,7.1139,140.57,140.54,0.34]
[1720035608460,17.7802,140.61,140.52,29.1718]
[1720035608655,7.114,140.57,140.52,29.1718]
[1720035608853,7.114,140.57,140.53,7.1159]
[1720035609064,7.1135,140.58,140.53,7.1159]
[1720035609762,7.1135,140.58,140.54,0.34]
[1720035609970,7.1129,140.59,140.54,7.4553]
[1720035610962,17.7802,140.61,140.54,0.34]
[1720035610963,7.1136,140.58,140.54,0.34]
[1720035612142,17.7802,140.61,140.54,0.34]
[1720035612342,48.63,140.62,140.52,22.0555]
[1720035612343,17.7823,140.59,140.52,22.0555]
[1720035612743,17.7823,140.59,140.44,35.6023]
[1720035612744,48.63,140.58,140.47,22.0]
[1720035613053,7.1155,140.54,140.49,7.1175]
[1720035613366,17.7865,140.56,140.48,7.1183]
[1720035613566,7.1162,140.53,140.48,7.1183]
[1720035614342,7.1162,140.53,140.49,7.1178]
[1720035614563,7.1162,140.53,140.48,7.4582]
[1720035615270,7.1155,140.54,140.49,24.9121]
[1720035615581,7.1159,140.53,140.5,0.34]
[1720035616167,7.1165,140.52,140.5,0.34]
[1720035616641,7.116,140.53,140.49,0.34]
[1720035617651,7.116,140.53,140.49,7.4578]
[1720035617866,7.1156,140.54,140.49,7.4578]
[1720035618044,7.1159,140.53,140.49,7.4578]
[1720035618766,7.1155,140.54,140.49,7.4578]
[1720035619145,7.1155,140.54,140.5,7.1173]
[1720035619459,27.25,140.57,140.51,7.1167]
[1720035619846,7.1149,140.55,140.52,0.17]
[1720035620172,17.7818,140.6,140.52,17.9604]
[1720035620384,17.7818,140.6,140.53,0.17]
[1720035620548,7.1142,140.57,140.53,0.17]
[1720035621068,7.1142,140.57,140.53,7.2858]
[1720035621370,7.1142,140.57,140.54,0.17]
[1720035621580,17.7818,140.6,140.54,0.17]
[1720035621868,7.1135,140.58,140.54,0.17]
[1720035622058,62.91177522,140.62,140.54,7.2853]
[1720035622059,7.113,140.59,140.54,7.2853]
[1720035622261,15.2863,140.62,140.55,7.2845]
[1720035622449,15.2863,140.62,140.56,0.17]
[1720035622778,15.2863,140.62,140.55,0.17]
[1720035622779,7.1129,140.59,140.55,0.17]
[1720035622960,45.0279,140.63,140.55,0.17]
[1720035622961,7.1125,140.6,140.55,0.17]
[1720035623267,7.1119,140.61,140.56,7.114]
[1720035623480,7.1123,140.6,140.57,0.34]
[1720035623642,7.1123,140.6,140.55,7.2847]
[1720035623849,7.1123,140.6,140.56,0.17]
[1720035624065,7.112,140.61,140.56,7.2843]
[1720035624266,27.25,140.65,140.57,0.17]
[1720035624477,27.25,140.65,140.58,17.7833]
[1720035624653,7.1114,140.62,140.59,0.34]
[1720035625975,27.25,140.65,140.59,0.34]
[1720035626176,7.1089,140.67,140.62,7.1112]
[1720035626483,7.1089,140.67,140.63,0.17]
[1720035626656,7.1096,140.66,140.63,0.34]
[1720035626869,7.1096,140.66,140.63,0.17]
[1720035627050,34.4026537,140.7,140.63,0.17]
[1720035627051,7.1099,140.65,140.63,0.17]
[1720035627949,27.25,140.69,140.62,0.17]
[1720035628161,16.6335537,140.7,140.62,17.7776]
[1720035628352,16.6335537,140.7,140.63,0.17]
[1720035628353,38.0135537,140.7,140.63,0.17]
[1720035628548,43.8835537,140.7,140.61,0.34]
[1720035629085,28.0771537,140.7,140.61,0.34]
[1720035629384,7.1092,140.67,140.61,18.1191]
[1720035629677,7.1097,140.66,140.61,25.2308]
[1720035629881,17.77,140.69,140.61,0.34]
[1720035630081,7.1099,140.65,140.61,0.34]
[1720035630258,7.1094,140.66,140.61,0.34]
[1720035630484,7.1099,140.65,140.61,0.34]
[1720035630790,7.1089,140.67,140.62,7.1113]
[1720035630999,7.1089,140.67,140.63,0.34]
[1720035631198,39.9760537,140.7,140.6,34.0349]
[1720035631376,39.9760537,140.7,140.61,0.34]
[1720035631803,18.5960537,140.7,140.61,0.34]
[1720035632297,7.1094,140.66,140.61,7.4517]
[1720035632591,7.1114,140.62,140.6,16.2546]
[1720035632803,17.7716,140.68,140.6,16.2546]
[1720035632968,7.1099,140.65,140.6,23.3667]
[1720035634103,7.1095,140.66,140.61,7.2817]
[1720035634286,7.1095,140.66,140.62,0.17]
[1720035635181,7.109,140.67,140.62,7.2812]
[1720035635382,7.109,140.67,140.63,7.2808]
[1720035635584,7.1083,140.68,140.64,0.17]
[1720035635779,7.1083,140.68,140.64,0.34]
[1720035636196,7.1088,140.67,140.64,0.34]
[1720035636515,7.1088,140.67,140.63,0.34]
[1720035636883,17.7701,140.69,140.61,17.7793]
[1720035637111,7.1104,140.64,140.6,16.2546]
[1720035637279,7.1099,140.65,140.61,7.4518]
[1720035637479,7.1092,140.67,140.62,7.1109]
[1720035637679,7.1094,140.66,140.63,0.34]
[1720035637896,7.109,140.67,140.63,0.34]
[1720035638405,7.1094,140.66,140.63,0.34]
[1720035638712,7.1094,140.66,140.62,0.34]
[1720035639607,7.1089,140.67,140.62,7.4512]
[1720035639799,7.1089,140.67,140.63,7.1108]
[1720035640101,7.1089,140.67,140.64,0.34]
[1720035640304,7.1084,140.68,140.64,0.34]
[1720035640486,7.1084,140.68,140.64,7.4502]
[1720035640686,7.108,140.69,140.64,7.4502]
[1720035640906,7.1083,140.68,140.64,7.4502]
[1720035641202,0.8271537,140.7,140.64,0.34]
[1720035641399,0.8271537,140.7,140.63,0.34]
[1720035641623,7.1091,140.67,140.63,0.34]
[1720035642200,7.1091,140.67,140.63,7.4507]
[1720035642706,0.8271537,140.7,140.63,0.34]
[1720035643106,7.1083,140.68,140.63,7.4505]
[1720035643292,0.8271537,140.7,140.63,0.34]
[1720035643493,7.1081,140.69,140.64,7.1103]
[1720035643690,7.1081,140.69,140.65,0.34]
[1720035644307,7.1081,140.69,140.65,7.4497]
[1720035644503,7.1081,140.69,140.66,15.6717]
[1720035648008,7.9346537,140.7,140.66,15.6717]
[1720035648709,0.8271537,140.7,140.66,15.6717]
[1720035649088,7.9348537,140.7,140.66,15.6717]
[1720035649290,0.8271537,140.7,140.66,33.4444]
[1720035649505,7.9344537,140.7,140.66,40.5535]
[1720035649707,7.1078,140.69,140.66,15.6717]
[1720035650409,7.1085,140.68,140.66,15.6717]
[1720035651620,7.1078,140.69,140.66,15.6717]
[1720035652596,7.9345537,140.7,140.66,15.6717]
[1720035652805,0.8271537,140.7,140.67,0.17]
[1720035653199,0.8271537,140.7,140.67,0.34]
[1720035653399,0.8271537,140.7,140.67,7.4487]
[1720035653706,0.8271537,140.7,140.67,0.34]
[1720035654516,27.25,140.74,140.67,0.34]
[1720035654905,27.25,140.74,140.67,7.4487]
[1720035655103,17.7626,140.75,140.67,7.4487]
[1720035655426,38.44869201,140.76,140.69,7.1077]
[1720035655427,37.86289201,140.76,140.69,7.1077]
[1720035655717,7.1061,140.73,140.68,24.8785]
[1720035655889,7.1061,140.73,140.69,0.34]
[1720035657315,7.1064,140.72,140.69,0.34]
[1720035660302,7.1068,140.71,140.69,0.34]
[1720035660501,7.1068,140.71,140.68,0.34]
[1720035660706,7.1068,140.71,140.69,0.17]
[1720035660902,7.1068,140.71,140.67,7.4487]
[1720035661823,7.1068,140.71,140.67,21.0587]
[1720035662497,20.7165,140.72,140.67,21.0587]
[1720035662998,7.1065,140.72,140.67,21.0587]
[1720035663198,7.1068,140.71,140.67,21.0587]
[1720035663605,13.61,140.72,140.67,21.0587]
[1720035663606,20.7165,140.72,140.67,21.0587]
[1720035663896,20.7165,140.72,140.66,33.445]
[1720035663897,13.61,140.69,140.66,15.6717]
[1720035664092,7.1088,140.67,140.66,15.6717]
[1720035664334,20.7188,140.67,140.66,15.6717]
[1720035664519,13.61,140.67,140.66,15.6717]
[1720035664901,7.1088,140.67,140.66,15.6717]
[1720035665230,7.1098,140.65,140.62,16.0448]
[1720035665419,13.61,140.65,140.62,23.156]
[1720035665599,13.61,140.66,140.62,23.156]
[1720035666122,20.7193,140.66,140.62,23.156]
[1720035666630,20.7193,140.66,140.63,0.17]
[1720035666926,20.7193,140.66,140.63,0.34]
[1720035667518,13.61,140.66,140.63,0.34]
[1720035667821,5.52728845,140.73,140.63,0.34]
[1720035667822,23.29258845,140.73,140.63,0.34]
[1720035668028,13.61,140.68,140.65,17.7745]
[1720035668238,13.61,140.68,140.66,0.17]
[1720035668421,7.1081,140.69,140.66,0.34]
[1720035668619,13.61,140.68,140.66,0.34]
[1720035668835,7.1081,140.69,140.66,0.34]
[1720035669032,13.61,140.68,140.66,0.34]
[1720035669632,20.7183,140.68,140.66,0.34]
[1720035669837,20.7183,140.68,140.65,0.34]
[1720035670139,20.7193,140.66,140.64,0.34]
[1720035670446,20.7193,140.66,140.63,0.34]
[1720035670950,20.7193,140.66,140.63,0.17]
[1720035671135,20.7192,140.67,140.63,0.17]
[1720035671332,20.7192,140.67,140.63,7.2807]
[1720035671537,13.61,140.67,140.63,7.2807]
[1720035672045,20.7189,140.67,140.63,0.17]
[1720035672231,20.7189,140.67,140.63,0.34]
[1720035672432,13.61,140.67,140.63,0.34]
[1720035672638,20.7193,140.66,140.63,0.34]
[1720035672943,13.61,140.66,140.63,0.34]
[1720035673543,20.7193,140.66,140.63,0.34]
[1720035673916,13.61,140.66,140.63,7.4508]
[1720035674841,7.109,140.67,140.63,7.4508]
[1720035675016,20.719,140.67,140.63,7.4508]
[1720035675635,7.109,140.67,140.63,7.4508]
[1720035675840,17.7709,140.68,140.62,16.0448]
[1720035676012,13.61,140.63,140.61,6.1277]
[1720035676540,13.61,140.64,140.61,13.2395]
[1720035676946,7.1081,140.69,140.64,7.1099]
[1720035677115,35.5254,140.75,140.61,6.1277]
[1720035677116,13.61,140.68,140.65,0.34]
[1720035678521,13.61,140.68,140.65,7.4496]
[1720035679318,20.7178,140.69,140.65,7.4496]
[1720035679623,20.7174,140.7,140.65,22.7868]
[1720035681147,7.1078,140.69,140.65,22.7868]
[1720035682028,20.7175,140.7,140.65,22.7868]
[1720035682247,13.61,140.69,140.65,22.7868]
[1720035682457,78.5776,140.78,140.67,6.3085]
[1720035682746,78.5776,140.78,140.7,7.1071]
[1720035682747,13.61,140.74,140.7,7.1071]
[1720035682920,13.61,140.74,140.71,0.34]
[1720035684553,20.7153,140.74,140.71,0.34]
[1720035684728,7.1053,140.74,140.71,0.34]
[1720035684927,20.7153,140.74,140.71,0.34]
[1720035685134,7.1058,140.73,140.7,0.34]
[1720035685331,13.61,140.71,140.7,0.34]
[1720035685646,20.7168,140.71,140.69,0.17]
[1720035686038,13.61,140.71,140.68,0.34]
[1720035686838,13.61,140.71,140.68,7.448]
[1720035687338,13.61,140.71,140.69,7.1078]
[1720035687853,7.1051,140.75,140.7,7.4472]
[1720035688044,13.61,140.73,140.7,0.34]
[1720035688245,13.61,140.73,140.7,7.4472]
[1720035689448,13.61,140.73,140.7,0.34]
[1720035689647,13.61,140.72,140.7,0.34]
[1720035689853,13.61,140.73,140.7,0.34]
[1720035690225,13.61,140.73,140.7,7.4472]
[1720035691350,7.105,140.75,140.71,7.1067]
[1720035691661,13.61,140.73,140.72,0.34]
[1720035691842,13.61,140.74,140.72,0.34]
[1720035692431,13.61,140.73,140.69,24.8767]
[1720035692633,13.61,140.73,140.7,0.34]
[1720035693653,13.61,140.72,140.7,0.34]
[1720035693825,20.7159,140.73,140.71,0.17]
[1720035694022,20.7159,140.73,140.69,0.34]
[1720035694023,7.1059,140.73,140.69,7.4477]
[1720035694243,13.61,140.74,140.69,31.7194]
[1720035695146,13.61,140.74,140.7,7.1071]
[1720035695333,13.61,140.74,140.71,0.34]
[1720035698155,15.2086,140.78,140.71,7.4467]
[1720035698448,13.61,140.75,140.71,7.4467]
[1720035698646,7.1045,140.76,140.71,7.4467]
[1720035698849,20.7145,140.76,140.71,21.0567]
[1720035699338,7.1049,140.75,140.71,21.0567]
[1720035699937,17.7569,140.79,140.72,38.4817]
[1720035700256,7.1025,140.8,140.75,7.1045]
[1720035700440,13.61,140.79,140.76,0.34]
[1720035700844,13.61,140.8,140.76,0.34]
[1720035701249,7.1028,140.79,140.76,0.34]
[1720035701840,7.1031,140.79,140.76,0.34]
[1720035702049,20.7131,140.79,140.76,0.34]
[1720035702262,18.5777537,140.84,140.77,13.78]
[1720035702439,7.1018,140.81,140.77,0.34]
[1720035702753,13.61,140.81,140.77,0.34]
[1720035702965,7.1023,140.8,140.77,0.34]
[1720035703130,7.1028,140.79,140.77,0.34]
[1720035703329,7.1023,140.8,140.77,0.34]
[1720035703755,7.1018,140.81,140.77,0.34]
[1720035703962,7.1018,140.81,140.77,7.4437]
[1720035703963,13.61,140.81,140.77,7.4437]
[1720035704459,20.7121,140.81,140.77,0.34]
[1720035704647,20.7121,140.81,140.77,7.4437]
[1720035704848,7.101,140.83,140.78,20.713]
[1720035705066,20.711,140.83,140.79,0.34]
[1720035705945,7.101,140.83,140.79,13.95]
[1720035706570,7.101,140.83,140.79,21.0527]
[1720035707674,14.4371537,140.84,140.8,20.7121]
[1720035707675,7.9274537,140.84,140.8,20.7121]
[1720035707965,0.8271537,140.84,140.82,13.61]
[1720035708162,0.8271537,140.84,140.83,0.34]
[1720035708963,0.8271537,140.84,140.83,13.61]
[1720035709144,0.8271537,140.84,140.83,13.95]
[1720035709547,0.8271537,140.84,140.83,21.0507]
[1720035709851,0.8271537,140.84,140.83,27.0513]
[1720035710765,0.04222485,140.89,140.87,7.0983]
[1720035710947,0.04222485,140.89,140.88,0.34]
[1720035711367,0.04222485,140.89,140.88,7.4382]
[1720035711564,20.24862485,140.92,140.88,7.4382]
[1720035711771,6.63862485,140.92,140.88,7.4382]
[1720035712174,7.0953,140.94,140.89,7.0976]
[1720035712474,15.8796,140.96,140.9,0.34]
[1720035712475,7.0958,140.93,140.9,0.34]
[1720035712653,7.0958,140.93,140.9,0.17]
[1720035713473,7.0954,140.94,140.9,0.17]
[1720035713673,7.0954,140.94,140.9,0.34]
[1720035714184,7.0949,140.95,140.9,7.4371]
[1720035715368,7.0942,140.96,140.91,7.0963]
[1720035715575,7.0942,140.96,140.92,0.34]
[1720035716078,7.0938,140.97,140.92,7.436]
[1720035717078,0.8271537,140.98,140.92,0.34]
[1720035717384,7.0943,140.96,140.92,0.34]
[1720035718464,0.8271537,140.98,140.93,17.739]
[1720035718665,0.8271537,140.98,140.94,0.17]
[1720035719060,7.094,140.97,140.94,0.17]
[1720035719461,7.0942,140.96,140.94,0.17]
[1720035719679,7.0942,140.96,140.93,0.17]
[1720035719875,7.9205537,140.98,140.93,0.17]
[1720035720079,0.8271537,140.98,140.95,7.0946]
[1720035720261,0.8271537,140.98,140.96,0.34]
[1720035720456,7.9204537,140.98,140.96,0.34]
[1720035720690,7.0937,140.97,140.93,7.0956]
[1720035720859,7.0937,140.97,140.94,0.34]
[1720035721184,7.0948,140.95,140.91,17.7406]
[1720035721569,7.0943,140.96,140.91,17.7406]
[1720035721760,7.0943,140.96,140.91,24.8369]
[1720035721957,0.8271537,140.98,140.89,29.5273]
[1720035721958,7.0956,140.94,140.89,29.5273]
[1720035722280,7.0954,140.94,140.89,29.5273]
[1720035722475,44.8745,140.97,140.89,22.4301]
[1720035722694,44.8745,140.97,140.9,7.0968]
[1720035722859,44.8745,140.97,140.89,29.5277]
[1720035723472,7.0954,140.94,140.89,29.5277]
[1720035724268,7.0954,140.94,140.9,0.34]
[1720035724571,7.0948,140.95,140.9,18.0828]
[1720035724770,0.8271537,140.98,140.92,7.0961]
[1720035725072,7.0942,140.96,140.91,7.0965]
[1720035725277,7.0948,140.95,140.91,7.0965]
[1720035725466,7.0945,140.96,140.92,7.096]
[1720035725661,7.0945,140.96,140.91,7.0966]
[1720035727975,7.0945,140.96,140.92,7.096]
[1720035728285,7.0942,140.96,140.92,17.7401]
[1720035729188,7.0947,140.95,140.91,7.0965]
[1720035729890,7.0947,140.95,140.9,7.437]
[1720035730079,0.8271537,140.98,140.91,7.0965]
[1720035730290,7.0942,140.96,140.92,0.34]
[1720035730463,7.0947,140.95,140.92,0.34]
[1720035730667,7.0945,140.96,140.91,7.0965]
[1720035730989,22.2071537,140.98,140.89,16.1251]
[1720035731178,27.14,140.95,140.86,24.8461]
[1720035731387,7.0975,140.9,140.86,17.7471]
[1720035731905,17.7386,140.94,140.86,17.7471]
[1720035731906,13.58,140.89,140.86,17.7471]
[1720035732095,62.0023,140.97,140.88,17.7447]
[1720035732267,13.58,140.92,140.88,17.7447]
[1720035732470,7.0956,140.94,140.9,7.097]
[1720035732685,13.58,140.93,140.9,7.097]
[1720035732891,7.0956,140.94,140.9,7.097]
[1720035733086,20.6756,140.94,140.9,7.097]
[1720035733290,7.0944,140.96,140.91,0.34]
[1720035733605,20.6749,140.95,140.91,0.34]
[1720035733769,13.58,140.94,140.91,0.34]
[1720035735276,13.58,140.94,140.91,7.4366]
[1720035735482,13.58,140.94,140.91,0.34]
[1720035735679,13.58,140.95,140.91,0.34]
[1720035735880,7.9206537,140.98,140.94,7.0951]
[1720035736081,14.4071537,140.98,140.93,0.34]
[1720035736477,14.4071537,140.98,140.94,24.8328]
[1720035736783,14.4071537,140.98,140.95,7.4344]
[1720035736784,0.8271537,140.98,140.95,7.4344]
[1720035736991,0.8271537,140.98,140.95,0.34]
[1720035737382,14.4071537,140.98,140.95,0.34]
[1720035737583,0.8271537,140.98,140.95,0.34]
[1720035737787,14.4071537,140.98,140.95,0.34]
[1720035738297,14.4071537,140.98,140.93,13.58]
[1720035738486,14.4071537,140.98,140.94,7.4351]
[1720035739897,0.8271537,140.98,140.95,7.0946]
[1720035740099,0.8271537,140.98,140.96,7.0941]
[1720035740278,0.8271537,140.98,140.97,0.17]
[1720035740678,0.8271537,140.98,140.94,0.17]
[1720035740679,14.4071537,140.98,140.94,0.17]
[1720035740883,7.0942,140.96,140.93,0.34]
[1720035741080,20.6742,140.96,140.93,0.34]
[1720035741280,13.58,140.96,140.93,0.34]
[1720035742078,13.58,140.95,140.93,0.34]
[1720035742276,13.58,140.94,140.93,0.17]
[1720035742477,14.4071537,140.98,140.93,7.2656]
[1720035742478,13.58,140.95,140.93,7.2656]
[1720035742781,13.58,140.96,140.93,7.2656]
[1720035742993,13.58,140.96,140.93,25.0048]
[1720035743201,13.58,140.97,140.93,25.0048]
[1720035743420,0.8271537,140.98,140.94,7.0951]
[1720035743588,0.8271537,140.98,140.95,7.0946]
[1720035745017,0.8271537,140.98,140.96,0.34]
[1720035745326,0.8271537,140.98,140.92,23.0327]
[1720035745327,7.0943,140.96,140.92,23.0327]
[1720035745505,7.0943,140.96,140.92,15.9365]
[1720035746020,7.0948,140.95,140.92,15.9365]
[1720035746199,7.0956,140.94,140.9,17.7421]
[1720035746392,7.0948,140.95,140.9,24.8391]
[1720035746615,7.0944,140.96,140.91,7.0967]
[1720035747000,7.0938,140.97,140.92,17.7402]
[1720035747199,7.0943,140.96,140.92,24.8362]
[1720035747400,7.0943,140.96,140.93,0.34]
[1720035748009,7.0938,140.97,140.92,7.0959]
[1720035748316,0.8271537,140.98,140.92,7.0959]
[1720035748515,7.9204537,140.98,140.94,7.0951]
[1720035748722,7.9204537,140.98,140.93,25.1746]
[1720035749018,7.0938,140.97,140.93,18.079]
[1720035749232,7.0942,140.96,140.93,0.34]
[1720035749718,7.0938,140.97,140.94,0.17]
[1720035750102,7.0938,140.97,140.92,25.0063]
[1720035750304,7.0942,140.96,140.93,0.17]
[1720035750511,7.0938,140.97,140.93,0.17]
[1720035750917,7.0942,140.96,140.92,25.0063]
[1720035751235,7.0947,140.95,140.92,0.17]
[1720035751412,7.0952,140.94,140.89,24.8409]
[1720035751743,16.6336,140.97,140.88,23.0344]
[1720035751744,7.0958,140.93,140.88,23.0344]
[1720035752107,16.6336,140.97,140.88,23.0344]
[1720035752108,7.0963,140.92,140.88,15.9365]
[1720035752332,7.0958,140.93,140.88,23.0346]
[1720035752526,7.0958,140.93,140.89,7.0977]
[1720035753607,7.0957,140.93,140.9,0.17]
[1720035753837,7.0957,140.93,140.89,0.34]